{"text_format":"3","workbook":"xlsx","n_sheets":4,"sheets":["لوحة المعلومات","الميزانية","الإعداد","بيانات المخطط"],"not_rendered":{"charts":2,"images":2,"defined_names":42},"read":"whole","date_system":"1900"}

{"sheet":"لوحة المعلومات","index":0,"n_rows":13,"n_cols":14,"rows_kept":13,"merged":[[2,0,4,2],[6,0,8,2],[10,0,12,2]]}
[{"$nulls":13},{"$f":"\" الميزانية التفاعلية \"&\"ل\"&اسمالميزانية","v":" الميزانية التفاعلية لعائلة زكي 2012"}]
[]
[{"$f":"'بيانات المخطط'!C38","v":{"v":4000,"d":" 4000 ر.س.‏ "}}]
[]
[{"$nulls":3},"الدخل"]
[]
[{"$f":"'بيانات المخطط'!C39","v":{"v":5933,"d":" 5933 ر.س.‏ "}}]
[]
[{"$nulls":3},"المصاريف"]
[]
[{"$f":"'بيانات المخطط'!D40 &'بيانات المخطط'!C40 &  \" ر.س.\"","v":"-1933 ر.س."}]
[]
[{"$nulls":3},"التدفق النقدي"]

{"sheet":"الميزانية","index":1,"n_rows":131,"n_cols":16,"rows_kept":131,"merged":[[18,1,18,13],[27,1,27,13],[36,1,36,13],[45,1,45,13],[54,1,54,13],[61,1,61,13],[68,1,68,13],[75,1,75,13],[82,1,82,13],[89,1,89,13],[96,1,96,13],[103,1,103,13],[110,1,110,13],[117,1,117,13],[124,1,124,13]]}
[null,null,"يناير","فبراير","مارس","أبريل","مايو","يونيو","يوليو","أغسطس","سبتمبر","أكتوبر","نوفمبر","ديسمبر","السنة","المتوسط"]
[]
[]
[]
[null,"الميزانية الأولية",1000]
[null,"الدخل الإجمالي",{"$f":"SUM(tblالدخل[يناير])","v":4222},{"$f":"SUM(tblالدخل[فبراير])","v":9033},{"$f":"SUM(tblالدخل[مارس])","v":4000},{"$f":"SUM(tblالدخل[أبريل])","v":4045},{"$f":"SUM(tblالدخل[مايو])","v":9000},{"$f":"SUM(tblالدخل[يونيو])","v":1525},{"$f":"SUM(tblالدخل[يوليو])","v":1500},{"$f":"SUM(tblالدخل[أغسطس])","v":6500},{"$f":"SUM(tblالدخل[سبتمبر])","v":4000},{"$f":"SUM(tblالدخل[أكتوبر])","v":4000},{"$f":"SUM(tblالدخل[نوفمبر])","v":9000},{"$f":"SUM(tblالدخل[ديسمبر])","v":4000},{"$f":"SUM(tblالدخل[سنة])","v":60825},{"$f":"O6/12","v":{"v":5068.75,"d":"5069"}}]
[null,"المصاريف الإجمالية",{"$f":"SUM(tblنفقةفئة1[يناير],tblنفقةفئة2[يناير],tblنفقةفئة3[يناير],tblنفقةفئة4[يناير],tblنفقةفئة5[يناير],tblنفقةفئة6[يناير],tblنفقةفئة7[يناير],tblنفقةفئة8[يناير],tblنفقةفئة9[يناير],tblنفقةفئة10[يناير],tblنفقةفئة11[يناير],tblنفقةفئة12[يناير],tblنفقةفئة13[يناير],tblنفقةفئة14[يناير],tblنفقةفئة15[يناير])","v":7936},{"$f":"SUM(tblنفقةفئة1[فبراير],tblنفقةفئة2[فبراير],tblنفقةفئة3[فبراير],tblنفقةفئة4[فبراير],tblنفقةفئة5[فبراير],tblنفقةفئة6[فبراير],tblنفقةفئة7[فبراير],tblنفقةفئة8[فبراير],tblنفقةفئة9[فبراير],tblنفقةفئة10[فبراير],tblنفقةفئة11[فبراير],tblنفقةفئة12[فبراير],tblنفقةفئة13[فبراير],tblنفقةفئة14[فبراير],tblنفقةفئة15[فبراير])","v":5243},{"$f":"SUM(tblنفقةفئة1[مارس],tblنفقةفئة2[مارس],tblنفقةفئة3[مارس],tblنفقةفئة4[مارس],tblنفقةفئة5[مارس],tblنفقةفئة6[مارس],tblنفقةفئة7[مارس],tblنفقةفئة8[مارس],tblنفقةفئة9[مارس],tblنفقةفئة10[مارس],tblنفقةفئة11[مارس],tblنفقةفئة12[مارس],tblنفقةفئة13[مارس],tblنفقةفئة14[مارس],tblنفقةفئة15[مارس])","v":5933},{"$f":"SUM(tblنفقةفئة1[أبريل],tblنفقةفئة2[أبريل],tblنفقةفئة3[أبريل],tblنفقةفئة4[أبريل],tblنفقةفئة5[أبريل],tblنفقةفئة6[أبريل],tblنفقةفئة7[أبريل],tblنفقةفئة8[أبريل],tblنفقةفئة9[أبريل],tblنفقةفئة10[أبريل],tblنفقةفئة11[أبريل],tblنفقةفئة12[أبريل],tblنفقةفئة13[أبريل],tblنفقةفئة14[أبريل],tblنفقةفئة15[أبريل])","v":5858},{"$f":"SUM(tblنفقةفئة1[مايو],tblنفقةفئة2[مايو],tblنفقةفئة3[مايو],tblنفقةفئة4[مايو],tblنفقةفئة5[مايو],tblنفقةفئة6[مايو],tblنفقةفئة7[مايو],tblنفقةفئة8[مايو],tblنفقةفئة9[مايو],tblنفقةفئة10[مايو],tblنفقةفئة11[مايو],tblنفقةفئة12[مايو],tblنفقةفئة13[مايو],tblنفقةفئة14[مايو],tblنفقةفئة15[مايو])","v":5468},{"$f":"SUM(tblنفقةفئة1[يونيو],tblنفقةفئة2[يونيو],tblنفقةفئة3[يونيو],tblنفقةفئة4[يونيو],tblنفقةفئة5[يونيو],tblنفقةفئة6[يونيو],tblنفقةفئة7[يونيو],tblنفقةفئة8[يونيو],tblنفقةفئة9[يونيو],tblنفقةفئة10[يونيو],tblنفقةفئة11[يونيو],tblنفقةفئة12[يونيو],tblنفقةفئة13[يونيو],tblنفقةفئة14[يونيو],tblنفقةفئة15[يونيو])","v":5118},{"$f":"SUM(tblنفقةفئة1[يوليو],tblنفقةفئة2[يوليو],tblنفقةفئة3[يوليو],tblنفقةفئة4[يوليو],tblنفقةفئة5[يوليو],tblنفقةفئة6[يوليو],tblنفقةفئة7[يوليو],tblنفقةفئة8[يوليو],tblنفقةفئة9[يوليو],tblنفقةفئة10[يوليو],tblنفقةفئة11[يوليو],tblنفقةفئة12[يوليو],tblنفقةفئة13[يوليو],tblنفقةفئة14[يوليو],tblنفقةفئة15[يوليو])","v":5743},{"$f":"SUM(tblنفقةفئة1[أغسطس],tblنفقةفئة2[أغسطس],tblنفقةفئة3[أغسطس],tblنفقةفئة4[أغسطس],tblنفقةفئة5[أغسطس],tblنفقةفئة6[أغسطس],tblنفقةفئة7[أغسطس],tblنفقةفئة8[أغسطس],tblنفقةفئة9[أغسطس],tblنفقةفئة10[أغسطس],tblنفقةفئة11[أغسطس],tblنفقةفئة12[أغسطس],tblنفقةفئة13[أغسطس],tblنفقةفئة14[أغسطس],tblنفقةفئة15[أغسطس])","v":5353},{"$f":"SUM(tblنفقةفئة1[سبتمبر],tblنفقةفئة2[سبتمبر],tblنفقةفئة3[سبتمبر],tblنفقةفئة4[سبتمبر],tblنفقةفئة5[سبتمبر],tblنفقةفئة6[سبتمبر],tblنفقةفئة7[سبتمبر],tblنفقةفئة8[سبتمبر],tblنفقةفئة9[سبتمبر],tblنفقةفئة10[سبتمبر],tblنفقةفئة11[سبتمبر],tblنفقةفئة12[سبتمبر],tblنفقةفئة13[سبتمبر],tblنفقةفئة14[سبتمبر],tblنفقةفئة15[سبتمبر])","v":5983},{"$f":"SUM(tblنفقةفئة1[أكتوبر],tblنفقةفئة2[أكتوبر],tblنفقةفئة3[أكتوبر],tblنفقةفئة4[أكتوبر],tblنفقةفئة5[أكتوبر],tblنفقةفئة6[أكتوبر],tblنفقةفئة7[أكتوبر],tblنفقةفئة8[أكتوبر],tblنفقةفئة9[أكتوبر],tblنفقةفئة10[أكتوبر],tblنفقةفئة11[أكتوبر],tblنفقةفئة12[أكتوبر],tblنفقةفئة13[أكتوبر],tblنفقةفئة14[أكتوبر],tblنفقةفئة15[أكتوبر])","v":5943},{"$f":"SUM(tblنفقةفئة1[نوفمبر],tblنفقةفئة2[نوفمبر],tblنفقةفئة3[نوفمبر],tblنفقةفئة4[نوفمبر],tblنفقةفئة5[نوفمبر],tblنفقةفئة6[نوفمبر],tblنفقةفئة7[نوفمبر],tblنفقةفئة8[نوفمبر],tblنفقةفئة9[نوفمبر],tblنفقةفئة10[نوفمبر],tblنفقةفئة11[نوفمبر],tblنفقةفئة12[نوفمبر],tblنفقةفئة13[نوفمبر],tblنفقةفئة14[نوفمبر],tblنفقةفئة15[نوفمبر])","v":5058},{"$f":"SUM(tblنفقةفئة1[ديسمبر],tblنفقةفئة2[ديسمبر],tblنفقةفئة3[ديسمبر],tblنفقةفئة4[ديسمبر],tblنفقةفئة5[ديسمبر],tblنفقةفئة6[ديسمبر],tblنفقةفئة7[ديسمبر],tblنفقةفئة8[ديسمبر],tblنفقةفئة9[ديسمبر],tblنفقةفئة10[ديسمبر],tblنفقةفئة11[ديسمبر],tblنفقةفئة12[ديسمبر],tblنفقةفئة13[ديسمبر],tblنفقةفئة14[ديسمبر],tblنفقةفئة15[ديسمبر])","v":4958},{"$f":"SUM(tblنفقةفئة1[سنة],tblنفقةفئة2[سنة],tblنفقةفئة3[سنة],tblنفقةفئة4[سنة],tblنفقةفئة5[سنة],tblنفقةفئة6[سنة],tblنفقةفئة7[سنة],tblنفقةفئة8[سنة],tblنفقةفئة9[سنة],tblنفقةفئة10[سنة],tblنفقةفئة11[سنة],tblنفقةفئة12[سنة],tblنفقةفئة13[سنة],tblنفقةفئة14[سنة],tblنفقةفئة15[سنة])","v":68594},{"$f":"O7/12","v":{"v":5716.166666666667,"d":"5716"}}]
[null,"صافي الدخل",{"$f":"C6-C7","v":-3714},{"$f":"D6-D7","v":3790},-1933,-1813,3532,-3593,-4243,1147,-1983,-1943,3942,-958,-7769,{"$f":"O8/12","v":{"v":-647.4166666666666,"d":"-647"}}]
[null,"الإجمالي التدفق النقدي",{"$f":"C5+C6-C7","v":-2714},{"$f":"C9+D6-D7","v":1076},{"$f":"D9+E6-E7","v":-857},-2670,862,-2731,-6974,-5827,-7810,-9753,-5811,-6769]
[]
[]
[null,"الدخل"]
[null,"الأجور والبقشيش",4000,4000,4000,4000,4000,1000,1000,1000,4000,4000,4000,4000,{"$f":"SUM(tblالدخل[[#This Row],[يناير]:[ديسمبر]])","v":39000},{"$f":"tblالدخل[[#This Row],[سنة]]/12","v":3250}]
[null,"الدخل من الفوائد",222,33,null,45,null,25,{"$nulls":6},{"$f":"SUM(tblالدخل[[#This Row],[يناير]:[ديسمبر]])","v":325},{"$f":"tblالدخل[[#This Row],[سنة]]/12","v":{"v":27.083333333333332,"d":"27"}}]
[null,"الأرباح",null,5000,null,null,5000,null,null,5000,null,null,5000,null,{"$f":"SUM(tblالدخل[[#This Row],[يناير]:[ديسمبر]])","v":20000},{"$f":"tblالدخل[[#This Row],[سنة]]/12","v":{"v":1666.6666666666667,"d":"1667"}}]
[null,"المبالغ المستردة/التعويضات",{"$nulls":5},500,500,500,{"$nulls":4},{"$f":"SUM(tblالدخل[[#This Row],[يناير]:[ديسمبر]])","v":1500},{"$f":"tblالدخل[[#This Row],[سنة]]/12","v":125}]
[null,"غير ذلك",{"$nulls":12},{"$f":"SUM(tblالدخل[[#This Row],[يناير]:[ديسمبر]])","v":0},{"$f":"tblالدخل[[#This Row],[سنة]]/12","v":0}]
[null,{"$f":"UPPER(\"الإجمالي \" & B12)","v":"الإجمالي الدخل"},{"$f":"SUM(tblالدخل[يناير])","v":4222},{"$f":"SUM(tblالدخل[فبراير])","v":9033},{"$f":"SUM(tblالدخل[مارس])","v":4000},{"$f":"SUM(tblالدخل[أبريل])","v":4045},{"$f":"SUM(tblالدخل[مايو])","v":9000},{"$f":"SUM(tblالدخل[يونيو])","v":1525},{"$f":"SUM(tblالدخل[يوليو])","v":1500},{"$f":"SUM(tblالدخل[أغسطس])","v":6500},{"$f":"SUM(tblالدخل[سبتمبر])","v":4000},{"$f":"SUM(tblالدخل[أكتوبر])","v":4000},{"$f":"SUM(tblالدخل[نوفمبر])","v":9000},{"$f":"SUM(tblالدخل[ديسمبر])","v":4000},{"$f":"SUM(tblالدخل[سنة])","v":60825},{"$f":"tblالدخل[[#Totals],[سنة]]/12","v":{"v":5068.75,"d":"5069"}}]
[]
[]
[null,"المنزل"]
[null,"الرهن/الإيجار",850,850,850,850,850,850,850,850,850,850,900,900,{"$f":"SUM(tblنفقةفئة1[[#This Row],[يناير]:[ديسمبر]])","v":10300},{"$f":"tblنفقةفئة1[[#This Row],[سنة]]/12","v":{"v":858.3333333333334,"d":"858"}}]
[null,"الكهرباء",200,200,175,150,150,175,225,275,200,150,150,150,{"$f":"SUM(tblنفقةفئة1[[#This Row],[يناير]:[ديسمبر]])","v":2200},{"$f":"tblنفقةفئة1[[#This Row],[سنة]]/12","v":{"v":183.33333333333334,"d":"183"}}]
[null,"الهاتف",50,50,100,100,50,50,100,100,50,50,50,50,{"$f":"SUM(tblنفقةفئة1[[#This Row],[يناير]:[ديسمبر]])","v":800},{"$f":"tblنفقةفئة1[[#This Row],[سنة]]/12","v":{"v":66.66666666666667,"d":"67"}}]
[null,"الكبل/القمر الصناعي",69,69,69,69,69,69,69,69,69,69,69,69,{"$f":"SUM(tblنفقةفئة1[[#This Row],[يناير]:[ديسمبر]])","v":828},{"$f":"tblنفقةفئة1[[#This Row],[سنة]]/12","v":69}]
[null,"الإنترنت",39,39,39,39,39,39,39,39,39,39,39,39,{"$f":"SUM(tblنفقةفئة1[[#This Row],[يناير]:[ديسمبر]])","v":468},{"$f":"tblنفقةفئة1[[#This Row],[سنة]]/12","v":39}]
[null,{"$f":"UPPER(\"الإجمالي \" & B21)","v":"الإجمالي المنزل"},{"$f":"SUM(tblنفقةفئة1[يناير])","v":1208},{"$f":"SUM(tblنفقةفئة1[فبراير])","v":1208},{"$f":"SUM(tblنفقةفئة1[مارس])","v":1233},{"$f":"SUM(tblنفقةفئة1[أبريل])","v":1208},{"$f":"SUM(tblنفقةفئة1[مايو])","v":1158},{"$f":"SUM(tblنفقةفئة1[يونيو])","v":1183},{"$f":"SUM(tblنفقةفئة1[يوليو])","v":1283},{"$f":"SUM(tblنفقةفئة1[أغسطس])","v":1333},{"$f":"SUM(tblنفقةفئة1[سبتمبر])","v":1208},{"$f":"SUM(tblنفقةفئة1[أكتوبر])","v":1158},{"$f":"SUM(tblنفقةفئة1[نوفمبر])","v":1208},{"$f":"SUM(tblنفقةفئة1[ديسمبر])","v":1208},{"$f":"SUM(tblنفقةفئة1[سنة])","v":14596},{"$f":"tblنفقةفئة1[[#Totals],[سنة]]/12","v":{"v":1216.3333333333333,"d":"1216"}}]
[]
[]
[null,"الحياة اليومية"]
[null,"البقالة",345,250,200,400,350,250,400,350,250,400,350,250,{"$f":"SUM(tblنفقةفئة2[[#This Row],[يناير]:[ديسمبر]])","v":3795},{"$f":"tblنفقةفئة2[[#This Row],[سنة]]/12","v":{"v":316.25,"d":"316"}}]
[null,"الملابس",300,null,null,300,null,null,300,null,null,300,null,null,{"$f":"SUM(tblنفقةفئة2[[#This Row],[يناير]:[ديسمبر]])","v":1200},{"$f":"tblنفقةفئة2[[#This Row],[سنة]]/12","v":100}]
[null,"العشاء/تناول الطعام خارج المنزل",125,125,300,125,125,200,125,125,125,125,125,125,{"$f":"SUM(tblنفقةفئة2[[#This Row],[يناير]:[ديسمبر]])","v":1750},{"$f":"tblنفقةفئة2[[#This Row],[سنة]]/12","v":{"v":145.83333333333334,"d":"146"}}]
[null,"الصالون/الحلاق",25,null,50,null,25,null,50,null,25,null,100,null,{"$f":"SUM(tblنفقةفئة2[[#This Row],[يناير]:[ديسمبر]])","v":275},{"$f":"tblنفقةفئة2[[#This Row],[سنة]]/12","v":{"v":22.916666666666668,"d":"23"}}]
[null,"غير ذلك",{"$nulls":12},{"$f":"SUM(tblنفقةفئة2[[#This Row],[يناير]:[ديسمبر]])","v":0},{"$f":"tblنفقةفئة2[[#This Row],[سنة]]/12","v":0}]
[null,{"$f":"UPPER(\"الإجمالي \" & B30)","v":"الإجمالي الحياة اليومية"},{"$f":"SUM(tblنفقةفئة2[يناير])","v":795},{"$f":"SUM(tblنفقةفئة2[فبراير])","v":375},{"$f":"SUM(tblنفقةفئة2[مارس])","v":550},{"$f":"SUM(tblنفقةفئة2[أبريل])","v":825},{"$f":"SUM(tblنفقةفئة2[مايو])","v":500},{"$f":"SUM(tblنفقةفئة2[يونيو])","v":450},{"$f":"SUM(tblنفقةفئة2[يوليو])","v":875},{"$f":"SUM(tblنفقةفئة2[أغسطس])","v":475},{"$f":"SUM(tblنفقةفئة2[سبتمبر])","v":400},{"$f":"SUM(tblنفقةفئة2[أكتوبر])","v":825},{"$f":"SUM(tblنفقةفئة2[نوفمبر])","v":575},{"$f":"SUM(tblنفقةفئة2[ديسمبر])","v":375},{"$f":"SUM(tblنفقةفئة2[سنة])","v":7020},{"$f":"tblنفقةفئة2[[#Totals],[سنة]]/12","v":585}]
[]
[]
[null,"الأولاد"]
[null,"تجهيزات المدرسة",123,null,100,{"$nulls":4},345,{"$nulls":4},{"$f":"SUM(tblنفقةفئة3[[#This Row],[يناير]:[ديسمبر]])","v":568},{"$f":"tblنفقةفئة3[[#This Row],[سنة]]/12","v":{"v":47.333333333333336,"d":"47"}}]
[null,"الملابس",null,100,null,null,100,{"$nulls":3},100,null,null,100,{"$f":"SUM(tblنفقةفئة3[[#This Row],[يناير]:[ديسمبر]])","v":400},{"$f":"tblنفقةفئة3[[#This Row],[سنة]]/12","v":{"v":33.333333333333336,"d":"33"}}]
[null,"غداء المدرسة",50,50,50,50,50,50,null,null,50,50,50,50,{"$f":"SUM(tblنفقةفئة3[[#This Row],[يناير]:[ديسمبر]])","v":500},{"$f":"tblنفقةفئة3[[#This Row],[سنة]]/12","v":{"v":41.666666666666664,"d":"42"}}]
[null,"الطبابة",200,200,200,200,200,200,200,200,200,200,200,200,{"$f":"SUM(tblنفقةفئة3[[#This Row],[يناير]:[ديسمبر]])","v":2400},{"$f":"tblنفقةفئة3[[#This Row],[سنة]]/12","v":200}]
[null,"غير ذلك",2000,150,{"$nulls":3},200,{"$nulls":3},100,null,null,{"$f":"SUM(tblنفقةفئة3[[#This Row],[يناير]:[ديسمبر]])","v":2450},{"$f":"tblنفقةفئة3[[#This Row],[سنة]]/12","v":{"v":204.16666666666666,"d":"204"}}]
[null,{"$f":"UPPER(\"الإجمالي \" & B39)","v":"الإجمالي الأولاد"},{"$f":"SUM(tblنفقةفئة3[يناير])","v":2373},{"$f":"SUM(tblنفقةفئة3[فبراير])","v":500},{"$f":"SUM(tblنفقةفئة3[مارس])","v":350},{"$f":"SUM(tblنفقةفئة3[أبريل])","v":250},{"$f":"SUM(tblنفقةفئة3[مايو])","v":350},{"$f":"SUM(tblنفقةفئة3[يونيو])","v":450},{"$f":"SUM(tblنفقةفئة3[يوليو])","v":200},{"$f":"SUM(tblنفقةفئة3[أغسطس])","v":545},{"$f":"SUM(tblنفقةفئة3[سبتمبر])","v":350},{"$f":"SUM(tblنفقةفئة3[أكتوبر])","v":350},{"$f":"SUM(tblنفقةفئة3[نوفمبر])","v":250},{"$f":"SUM(tblنفقةفئة3[ديسمبر])","v":350},{"$f":"SUM(tblنفقةفئة3[سنة])","v":6318},{"$f":"tblنفقةفئة3[[#Totals],[سنة]]/12","v":{"v":526.5,"d":"527"}}]
[]
[]
[null,"المواصلات"]
[null,"مدفوعات السيارات",600,600,600,600,600,600,600,600,600,600,600,600,{"$f":"SUM(tblنفقةفئة4[[#This Row],[يناير]:[ديسمبر]])","v":7200},{"$f":"tblنفقةفئة4[[#This Row],[سنة]]/12","v":600}]
[null,"الوقود",325,325,325,325,325,500,500,500,325,325,325,325,{"$f":"SUM(tblنفقةفئة4[[#This Row],[يناير]:[ديسمبر]])","v":4425},{"$f":"tblنفقةفئة4[[#This Row],[سنة]]/12","v":{"v":368.75,"d":"369"}}]
[null,"الإصلاحات",null,100,null,100,null,100,null,100,null,100,null,null,{"$f":"SUM(tblنفقةفئة4[[#This Row],[يناير]:[ديسمبر]])","v":500},{"$f":"tblنفقةفئة4[[#This Row],[سنة]]/12","v":{"v":41.666666666666664,"d":"42"}}]
[null,"التسجيل/الترخيص",185,{"$nulls":7},225,{"$nulls":3},{"$f":"SUM(tblنفقةفئة4[[#This Row],[يناير]:[ديسمبر]])","v":410},{"$f":"tblنفقةفئة4[[#This Row],[سنة]]/12","v":{"v":34.166666666666664,"d":"34"}}]
[null,"غير ذلك",{"$nulls":4},400,{"$nulls":7},{"$f":"SUM(tblنفقةفئة4[[#This Row],[يناير]:[ديسمبر]])","v":400},{"$f":"tblنفقةفئة4[[#This Row],[سنة]]/12","v":{"v":33.333333333333336,"d":"33"}}]
[null,{"$f":"UPPER(\"الإجمالي \" & B48)","v":"الإجمالي المواصلات"},{"$f":"SUM(tblنفقةفئة4[يناير])","v":1110},{"$f":"SUM(tblنفقةفئة4[فبراير])","v":1025},{"$f":"SUM(tblنفقةفئة4[مارس])","v":925},{"$f":"SUM(tblنفقةفئة4[أبريل])","v":1025},{"$f":"SUM(tblنفقةفئة4[مايو])","v":1325},{"$f":"SUM(tblنفقةفئة4[يونيو])","v":1200},{"$f":"SUM(tblنفقةفئة4[يوليو])","v":1100},{"$f":"SUM(tblنفقةفئة4[أغسطس])","v":1200},{"$f":"SUM(tblنفقةفئة4[سبتمبر])","v":1150},{"$f":"SUM(tblنفقةفئة4[أكتوبر])","v":1025},{"$f":"SUM(tblنفقةفئة4[نوفمبر])","v":925},{"$f":"SUM(tblنفقةفئة4[ديسمبر])","v":925},{"$f":"SUM(tblنفقةفئة4[سنة])","v":12935},{"$f":"tblنفقةفئة4[[#Totals],[سنة]]/12","v":{"v":1077.9166666666667,"d":"1078"}}]
[]
[]
[null,"الصحة"]
[null,"الطبيب/طبيب الأسنان",null,35,null,null,35,35,35,null,null,35,null,null,{"$f":"SUM(tblنفقةفئة5[[#This Row],[يناير]:[ديسمبر]])","v":175},{"$f":"tblنفقةفئة5[[#This Row],[سنة]]/12","v":{"v":14.583333333333334,"d":"15"}}]
[null,"الأدوية/العقاقير",25,25,25,25,25,25,25,25,25,25,25,25,{"$f":"SUM(tblنفقةفئة5[[#This Row],[يناير]:[ديسمبر]])","v":300},{"$f":"tblنفقةفئة5[[#This Row],[سنة]]/12","v":25}]
[null,"غير ذلك",null,null,150,{"$nulls":5},150,{"$nulls":3},{"$f":"SUM(tblنفقةفئة5[[#This Row],[يناير]:[ديسمبر]])","v":300},{"$f":"tblنفقةفئة5[[#This Row],[سنة]]/12","v":25}]
[null,{"$f":"UPPER(\"الإجمالي \" & B57)","v":"الإجمالي الصحة"},{"$f":"SUM(tblنفقةفئة5[يناير])","v":25},{"$f":"SUM(tblنفقةفئة5[فبراير])","v":60},{"$f":"SUM(tblنفقةفئة5[مارس])","v":175},{"$f":"SUM(tblنفقةفئة5[أبريل])","v":25},{"$f":"SUM(tblنفقةفئة5[مايو])","v":60},{"$f":"SUM(tblنفقةفئة5[يونيو])","v":60},{"$f":"SUM(tblنفقةفئة5[يوليو])","v":60},{"$f":"SUM(tblنفقةفئة5[أغسطس])","v":25},{"$f":"SUM(tblنفقةفئة5[سبتمبر])","v":175},{"$f":"SUM(tblنفقةفئة5[أكتوبر])","v":60},{"$f":"SUM(tblنفقةفئة5[نوفمبر])","v":25},{"$f":"SUM(tblنفقةفئة5[ديسمبر])","v":25},{"$f":"SUM(tblنفقةفئة5[سنة])","v":775},{"$f":"tblنفقةفئة5[[#Totals],[سنة]]/12","v":{"v":64.58333333333333,"d":"65"}}]
[]
[]
[null,"التأمين"]
[null,"السيارة",150,150,150,150,150,150,150,150,150,150,150,150,{"$f":"SUM(tblنفقةفئة6[[#This Row],[يناير]:[ديسمبر]])","v":1800},{"$f":"tblنفقةفئة6[[#This Row],[سنة]]/12","v":150}]
[null,"الصحة",675,675,675,675,675,675,675,675,675,675,675,675,{"$f":"SUM(tblنفقةفئة6[[#This Row],[يناير]:[ديسمبر]])","v":8100},{"$f":"tblنفقةفئة6[[#This Row],[سنة]]/12","v":675}]
[null,"الحياة",150,150,150,150,150,150,150,150,150,150,150,150,{"$f":"SUM(tblنفقةفئة6[[#This Row],[يناير]:[ديسمبر]])","v":1800},{"$f":"tblنفقةفئة6[[#This Row],[سنة]]/12","v":150}]
[null,{"$f":"UPPER(\"الإجمالي \" & B64)","v":"الإجمالي التأمين"},{"$f":"SUM(tblنفقةفئة6[يناير])","v":975},{"$f":"SUM(tblنفقةفئة6[فبراير])","v":975},{"$f":"SUM(tblنفقةفئة6[مارس])","v":975},{"$f":"SUM(tblنفقةفئة6[أبريل])","v":975},{"$f":"SUM(tblنفقةفئة6[مايو])","v":975},{"$f":"SUM(tblنفقةفئة6[يونيو])","v":975},{"$f":"SUM(tblنفقةفئة6[يوليو])","v":975},{"$f":"SUM(tblنفقةفئة6[أغسطس])","v":975},{"$f":"SUM(tblنفقةفئة6[سبتمبر])","v":975},{"$f":"SUM(tblنفقةفئة6[أكتوبر])","v":975},{"$f":"SUM(tblنفقةفئة6[نوفمبر])","v":975},{"$f":"SUM(tblنفقةفئة6[ديسمبر])","v":975},{"$f":"SUM(tblنفقةفئة6[سنة])","v":11700},{"$f":"tblنفقةفئة6[[#Totals],[سنة]]/12","v":975}]
[]
[]
[null,"التعليم"]
[null,"الأقساط",null,null,400,{"$nulls":5},400,{"$nulls":3},{"$f":"SUM(tblنفقةفئة7[[#This Row],[يناير]:[ديسمبر]])","v":800},{"$f":"tblنفقةفئة7[[#This Row],[سنة]]/12","v":{"v":66.66666666666667,"d":"67"}}]
[null,"الكتب",null,null,225,{"$nulls":5},225,{"$nulls":3},{"$f":"SUM(tblنفقةفئة7[[#This Row],[يناير]:[ديسمبر]])","v":450},{"$f":"tblنفقةفئة7[[#This Row],[سنة]]/12","v":{"v":37.5,"d":"38"}}]
[null,"غير ذلك",{"$nulls":12},{"$f":"SUM(tblنفقةفئة7[[#This Row],[يناير]:[ديسمبر]])","v":0},{"$f":"tblنفقةفئة7[[#This Row],[سنة]]/12","v":0}]
[null,{"$f":"UPPER(\"الإجمالي \" & B71)","v":"الإجمالي التعليم"},{"$f":"SUM(tblنفقةفئة7[يناير])","v":0},{"$f":"SUM(tblنفقةفئة7[فبراير])","v":0},{"$f":"SUM(tblنفقةفئة7[مارس])","v":625},{"$f":"SUM(tblنفقةفئة7[أبريل])","v":0},{"$f":"SUM(tblنفقةفئة7[مايو])","v":0},{"$f":"SUM(tblنفقةفئة7[يونيو])","v":0},{"$f":"SUM(tblنفقةفئة7[يوليو])","v":0},{"$f":"SUM(tblنفقةفئة7[أغسطس])","v":0},{"$f":"SUM(tblنفقةفئة7[سبتمبر])","v":625},{"$f":"SUM(tblنفقةفئة7[أكتوبر])","v":0},{"$f":"SUM(tblنفقةفئة7[نوفمبر])","v":0},{"$f":"SUM(tblنفقةفئة7[ديسمبر])","v":0},{"$f":"SUM(tblنفقةفئة7[سنة])","v":1250},{"$f":"tblنفقةفئة7[[#Totals],[سنة]]/12","v":{"v":104.16666666666667,"d":"104"}}]
[]
[]
[null,"العمل الخيري"]
[null,"الهدايا الممنوحة",null,100,{"$nulls":3},100,{"$nulls":3},100,null,null,{"$f":"SUM(tblنفقةفئة8[[#This Row],[يناير]:[ديسمبر]])","v":300},{"$f":"tblنفقةفئة8[[#This Row],[سنة]]/12","v":25}]
[null,"التبرعات الخيرية",null,null,100,null,100,null,100,null,100,null,100,null,{"$f":"SUM(tblنفقةفئة8[[#This Row],[يناير]:[ديسمبر]])","v":500},{"$f":"tblنفقةفئة8[[#This Row],[سنة]]/12","v":{"v":41.666666666666664,"d":"42"}}]
[null,"غير ذلك",{"$nulls":3},100,{"$nulls":3},100,{"$nulls":3},100,{"$f":"SUM(tblنفقةفئة8[[#This Row],[يناير]:[ديسمبر]])","v":300},{"$f":"tblنفقةفئة8[[#This Row],[سنة]]/12","v":25}]
[null,{"$f":"UPPER(\"الإجمالي \" & B78)","v":"الإجمالي العمل الخيري"},{"$f":"SUM(tblنفقةفئة8[يناير])","v":0},{"$f":"SUM(tblنفقةفئة8[فبراير])","v":100},{"$f":"SUM(tblنفقةفئة8[مارس])","v":100},{"$f":"SUM(tblنفقةفئة8[أبريل])","v":100},{"$f":"SUM(tblنفقةفئة8[مايو])","v":100},{"$f":"SUM(tblنفقةفئة8[يونيو])","v":100},{"$f":"SUM(tblنفقةفئة8[يوليو])","v":100},{"$f":"SUM(tblنفقةفئة8[أغسطس])","v":100},{"$f":"SUM(tblنفقةفئة8[سبتمبر])","v":100},{"$f":"SUM(tblنفقةفئة8[أكتوبر])","v":100},{"$f":"SUM(tblنفقةفئة8[نوفمبر])","v":100},{"$f":"SUM(tblنفقةفئة8[ديسمبر])","v":100},{"$f":"SUM(tblنفقةفئة8[سنة])","v":1100},{"$f":"tblنفقةفئة8[[#Totals],[سنة]]/12","v":{"v":91.66666666666667,"d":"92"}}]
[]
[]
[null,"المدخرات"]
[null,"صندوق الطوارئ",100,100,100,100,100,{"$nulls":3},100,100,100,100,{"$f":"SUM(tblنفقةفئة9[[#This Row],[يناير]:[ديسمبر]])","v":900},{"$f":"tblنفقةفئة9[[#This Row],[سنة]]/12","v":75}]
[null,"التقاعد (خطط التقاعد)",500,500,500,500,500,500,500,500,500,500,500,500,{"$f":"SUM(tblنفقةفئة9[[#This Row],[يناير]:[ديسمبر]])","v":6000},{"$f":"tblنفقةفئة9[[#This Row],[سنة]]/12","v":500}]
[null,"التحويل إلى الادخار",200,200,200,200,200,{"$nulls":3},200,200,200,200,{"$f":"SUM(tblنفقةفئة9[[#This Row],[يناير]:[ديسمبر]])","v":1800},{"$f":"tblنفقةفئة9[[#This Row],[سنة]]/12","v":150}]
[null,{"$f":"UPPER(\"الإجمالي \" & B85)","v":"الإجمالي المدخرات"},{"$f":"SUM(tblنفقةفئة9[يناير])","v":800},{"$f":"SUM(tblنفقةفئة9[فبراير])","v":800},{"$f":"SUM(tblنفقةفئة9[مارس])","v":800},{"$f":"SUM(tblنفقةفئة9[أبريل])","v":800},{"$f":"SUM(tblنفقةفئة9[مايو])","v":800},{"$f":"SUM(tblنفقةفئة9[يونيو])","v":500},{"$f":"SUM(tblنفقةفئة9[يوليو])","v":500},{"$f":"SUM(tblنفقةفئة9[أغسطس])","v":500},{"$f":"SUM(tblنفقةفئة9[سبتمبر])","v":800},{"$f":"SUM(tblنفقةفئة9[أكتوبر])","v":800},{"$f":"SUM(tblنفقةفئة9[نوفمبر])","v":800},{"$f":"SUM(tblنفقةفئة9[ديسمبر])","v":800},{"$f":"SUM(tblنفقةفئة9[سنة])","v":8700},{"$f":"tblنفقةفئة9[[#Totals],[سنة]]/12","v":725}]
[]
[]
[null,"الالتزامات"]
[null,"بطاقة الائتمان رقم 1",145,145,145,145,145,145,145,145,145,145,145,145,{"$f":"SUM(tblنفقةفئة10[[#This Row],[يناير]:[ديسمبر]])","v":1740},{"$f":"tblنفقةفئة10[[#This Row],[سنة]]/12","v":145}]
[null,"الضرائب الفدرالية",450,null,null,450,null,null,450,null,null,450,null,null,{"$f":"SUM(tblنفقةفئة10[[#This Row],[يناير]:[ديسمبر]])","v":1800},{"$f":"tblنفقةفئة10[[#This Row],[سنة]]/12","v":150}]
[null,"قرض الطلاب",55,55,55,55,55,55,55,55,55,55,55,55,{"$f":"SUM(tblنفقةفئة10[[#This Row],[يناير]:[ديسمبر]])","v":660},{"$f":"tblنفقةفئة10[[#This Row],[سنة]]/12","v":55}]
[null,{"$f":"UPPER(\"الإجمالي \" & B92)","v":"الإجمالي الالتزامات"},{"$f":"SUM(tblنفقةفئة10[يناير])","v":650},{"$f":"SUM(tblنفقةفئة10[فبراير])","v":200},{"$f":"SUM(tblنفقةفئة10[مارس])","v":200},{"$f":"SUM(tblنفقةفئة10[أبريل])","v":650},{"$f":"SUM(tblنفقةفئة10[مايو])","v":200},{"$f":"SUM(tblنفقةفئة10[يونيو])","v":200},{"$f":"SUM(tblنفقةفئة10[يوليو])","v":650},{"$f":"SUM(tblنفقةفئة10[أغسطس])","v":200},{"$f":"SUM(tblنفقةفئة10[سبتمبر])","v":200},{"$f":"SUM(tblنفقةفئة10[أكتوبر])","v":650},{"$f":"SUM(tblنفقةفئة10[نوفمبر])","v":200},{"$f":"SUM(tblنفقةفئة10[ديسمبر])","v":200},{"$f":"SUM(tblنفقةفئة10[سنة])","v":4200},{"$f":"tblنفقةفئة10[[#Totals],[سنة]]/12","v":350}]
[]
[]
[null," "]
[{"$nulls":14},{"$f":"SUM(tblنفقةفئة11[[#This Row],[يناير]:[ديسمبر]])","v":0},{"$f":"tblنفقةفئة11[[#This Row],[سنة]]/12","v":0}]
[{"$nulls":14},{"$f":"SUM(tblنفقةفئة11[[#This Row],[يناير]:[ديسمبر]])","v":0},{"$f":"tblنفقةفئة11[[#This Row],[سنة]]/12","v":0}]
[{"$nulls":14},{"$f":"SUM(tblنفقةفئة11[[#This Row],[يناير]:[ديسمبر]])","v":0},{"$f":"tblنفقةفئة11[[#This Row],[سنة]]/12","v":0}]
[null,{"$f":"UPPER(\"الإجمالي \" & B99)","v":"الإجمالي  "},{"$f":"SUM(tblنفقةفئة11[يناير])","v":0},{"$f":"SUM(tblنفقةفئة11[فبراير])","v":0},{"$f":"SUM(tblنفقةفئة11[مارس])","v":0},{"$f":"SUM(tblنفقةفئة11[أبريل])","v":0},{"$f":"SUM(tblنفقةفئة11[مايو])","v":0},{"$f":"SUM(tblنفقةفئة11[يونيو])","v":0},{"$f":"SUM(tblنفقةفئة11[يوليو])","v":0},{"$f":"SUM(tblنفقةفئة11[أغسطس])","v":0},{"$f":"SUM(tblنفقةفئة11[سبتمبر])","v":0},{"$f":"SUM(tblنفقةفئة11[أكتوبر])","v":0},{"$f":"SUM(tblنفقةفئة11[نوفمبر])","v":0},{"$f":"SUM(tblنفقةفئة11[ديسمبر])","v":0},{"$f":"SUM(tblنفقةفئة11[سنة])","v":0},{"$f":"tblنفقةفئة11[[#Totals],[سنة]]/12","v":0}]
[]
[]
[null," "]
[{"$nulls":14},{"$f":"SUM(tblنفقةفئة12[[#This Row],[يناير]:[ديسمبر]])","v":0},{"$f":"tblنفقةفئة12[[#This Row],[سنة]]/12","v":0}]
[{"$nulls":14},{"$f":"SUM(tblنفقةفئة12[[#This Row],[يناير]:[ديسمبر]])","v":0},{"$f":"tblنفقةفئة12[[#This Row],[سنة]]/12","v":0}]
[{"$nulls":14},{"$f":"SUM(tblنفقةفئة12[[#This Row],[يناير]:[ديسمبر]])","v":0},{"$f":"tblنفقةفئة12[[#This Row],[سنة]]/12","v":0}]
[null,{"$f":"UPPER(\"الإجمالي \" & B106)","v":"الإجمالي  "},{"$f":"SUM(tblنفقةفئة12[يناير])","v":0},{"$f":"SUM(tblنفقةفئة12[فبراير])","v":0},{"$f":"SUM(tblنفقةفئة12[مارس])","v":0},{"$f":"SUM(tblنفقةفئة12[أبريل])","v":0},{"$f":"SUM(tblنفقةفئة12[مايو])","v":0},{"$f":"SUM(tblنفقةفئة12[يونيو])","v":0},{"$f":"SUM(tblنفقةفئة12[يوليو])","v":0},{"$f":"SUM(tblنفقةفئة12[أغسطس])","v":0},{"$f":"SUM(tblنفقةفئة12[سبتمبر])","v":0},{"$f":"SUM(tblنفقةفئة12[أكتوبر])","v":0},{"$f":"SUM(tblنفقةفئة12[نوفمبر])","v":0},{"$f":"SUM(tblنفقةفئة12[ديسمبر])","v":0},{"$f":"SUM(tblنفقةفئة12[سنة])","v":0},{"$f":"tblنفقةفئة12[[#Totals],[سنة]]/12","v":0}]
[]
[]
[null," "]
[{"$nulls":14},{"$f":"SUM(tblنفقةفئة13[[#This Row],[يناير]:[ديسمبر]])","v":0},{"$f":"tblنفقةفئة13[[#This Row],[سنة]]/12","v":0}]
[{"$nulls":14},{"$f":"SUM(tblنفقةفئة13[[#This Row],[يناير]:[ديسمبر]])","v":0},{"$f":"tblنفقةفئة13[[#This Row],[سنة]]/12","v":0}]
[{"$nulls":14},{"$f":"SUM(tblنفقةفئة13[[#This Row],[يناير]:[ديسمبر]])","v":0},{"$f":"tblنفقةفئة13[[#This Row],[سنة]]/12","v":0}]
[null,{"$f":"UPPER(\"الإجمالي \" & B113)","v":"الإجمالي  "},{"$f":"SUM(tblنفقةفئة13[يناير])","v":0},{"$f":"SUM(tblنفقةفئة13[فبراير])","v":0},{"$f":"SUM(tblنفقةفئة13[مارس])","v":0},{"$f":"SUM(tblنفقةفئة13[أبريل])","v":0},{"$f":"SUM(tblنفقةفئة13[مايو])","v":0},{"$f":"SUM(tblنفقةفئة13[يونيو])","v":0},{"$f":"SUM(tblنفقةفئة13[يوليو])","v":0},{"$f":"SUM(tblنفقةفئة13[أغسطس])","v":0},{"$f":"SUM(tblنفقةفئة13[سبتمبر])","v":0},{"$f":"SUM(tblنفقةفئة13[أكتوبر])","v":0},{"$f":"SUM(tblنفقةفئة13[نوفمبر])","v":0},{"$f":"SUM(tblنفقةفئة13[ديسمبر])","v":0},{"$f":"SUM(tblنفقةفئة13[سنة])","v":0},{"$f":"tblنفقةفئة13[[#Totals],[سنة]]/12","v":0}]
[]
[]
[null," "]
[{"$nulls":14},{"$f":"SUM(tblنفقةفئة14[[#This Row],[يناير]:[ديسمبر]])","v":0},{"$f":"tblنفقةفئة14[[#This Row],[سنة]]/12","v":0}]
[{"$nulls":14},{"$f":"SUM(tblنفقةفئة14[[#This Row],[يناير]:[ديسمبر]])","v":0},{"$f":"tblنفقةفئة14[[#This Row],[سنة]]/12","v":0}]
[{"$nulls":14},{"$f":"SUM(tblنفقةفئة14[[#This Row],[يناير]:[ديسمبر]])","v":0},{"$f":"tblنفقةفئة14[[#This Row],[سنة]]/12","v":0}]
[null,{"$f":"UPPER(\"الإجمالي \" & B120)","v":"الإجمالي  "},{"$f":"SUM(tblنفقةفئة14[يناير])","v":0},{"$f":"SUM(tblنفقةفئة14[فبراير])","v":0},{"$f":"SUM(tblنفقةفئة14[مارس])","v":0},{"$f":"SUM(tblنفقةفئة14[أبريل])","v":0},{"$f":"SUM(tblنفقةفئة14[مايو])","v":0},{"$f":"SUM(tblنفقةفئة14[يونيو])","v":0},{"$f":"SUM(tblنفقةفئة14[يوليو])","v":0},{"$f":"SUM(tblنفقةفئة14[أغسطس])","v":0},{"$f":"SUM(tblنفقةفئة14[سبتمبر])","v":0},{"$f":"SUM(tblنفقةفئة14[أكتوبر])","v":0},{"$f":"SUM(tblنفقةفئة14[نوفمبر])","v":0},{"$f":"SUM(tblنفقةفئة14[ديسمبر])","v":0},{"$f":"SUM(tblنفقةفئة14[سنة])","v":0},{"$f":"tblنفقةفئة14[[#Totals],[سنة]]/12","v":0}]
[]
[]
[null," "]
[{"$nulls":14},{"$f":"SUM(tblنفقةفئة15[[#This Row],[يناير]:[ديسمبر]])","v":0},{"$f":"tblنفقةفئة15[[#This Row],[سنة]]/12","v":0}]
[{"$nulls":14},{"$f":"SUM(tblنفقةفئة15[[#This Row],[يناير]:[ديسمبر]])","v":0},{"$f":"tblنفقةفئة15[[#This Row],[سنة]]/12","v":0}]
[{"$nulls":14},{"$f":"SUM(tblنفقةفئة15[[#This Row],[يناير]:[ديسمبر]])","v":0},{"$f":"tblنفقةفئة15[[#This Row],[سنة]]/12","v":0}]
[null,{"$f":"UPPER(\"الإجمالي \" & B127)","v":"الإجمالي  "},{"$f":"SUM(tblنفقةفئة15[يناير])","v":0},{"$f":"SUM(tblنفقةفئة15[فبراير])","v":0},{"$f":"SUM(tblنفقةفئة15[مارس])","v":0},{"$f":"SUM(tblنفقةفئة15[أبريل])","v":0},{"$f":"SUM(tblنفقةفئة15[مايو])","v":0},{"$f":"SUM(tblنفقةفئة15[يونيو])","v":0},{"$f":"SUM(tblنفقةفئة15[يوليو])","v":0},{"$f":"SUM(tblنفقةفئة15[أغسطس])","v":0},{"$f":"SUM(tblنفقةفئة15[سبتمبر])","v":0},{"$f":"SUM(tblنفقةفئة15[أكتوبر])","v":0},{"$f":"SUM(tblنفقةفئة15[نوفمبر])","v":0},{"$f":"SUM(tblنفقةفئة15[ديسمبر])","v":0},{"$f":"SUM(tblنفقةفئة15[سنة])","v":0},{"$f":"tblنفقةفئة15[[#Totals],[سنة]]/12","v":0}]

{"sheet":"الإعداد","index":2,"n_rows":59,"n_cols":10,"rows_kept":59}
[null,"عائلة زكي 2012"]
[null,"الدخل",null,"المصاريف"]
[null,"الأجور والبقشيش",null," "]
[null,"الدخل من الفوائد",null,"المنزل",null,"المنزل",null,"الحياة اليومية",null,"الأولاد"]
[null,"الأرباح",null,"الحياة اليومية",null,"الرهن/الإيجار",null,"البقالة",null,"الطبابة"]
[null,"الهدايا المتلقاة",null,"الأولاد",null,"الكهرباء",null,"التجهيزات الشخصية",null,"الملابس"]
[null,"المبالغ المستردة/التعويضات",null,"المواصلات",null,"الغاز/الزيت",null,"الملابس",null,"الأقساط المدرسية"]
[null,"التحويل من الادخار",null,"الصحة",null,"المياه/الصرف/القمامة",null,"خدمات التنظيف",null,"غداء المدرسة"]
[null,"غير ذلك",null,"التأمين",null,"الهاتف",null,"العشاء/تناول الطعام في الخارج",null,"التجهيزات المدرسية"]
[{"$nulls":3},"التعليم",null,"الكبل/القمر الصناعي",null,"التنظيف الجاف",null,"مجالسة الأطفال"]
[{"$nulls":3},"العمل الخيري",null,"الإنترنت",null,"الصالون/الحلاق",null,"الدمى/الألعاب"]
[{"$nulls":3},"المدخرات",null,"الأثاث/الأجهزة المنزلية",null,"غير ذلك",null,"غير ذلك"]
[{"$nulls":3},"الالتزامات",null,"المرج/الحديقة"]
[{"$nulls":3},"الترفيه",null,"المؤن المنزلية"]
[{"$nulls":3},"الحيوانات الأليفة",null,"الصيانة"]
[{"$nulls":3},"الاشتراكات",null,"التحسينات"]
[{"$nulls":3},"العطلة",null,"غير ذلك"]
[{"$nulls":3},"خيارات متنوعة"]
[]
[{"$nulls":5},"المواصلات",null,"الصحة",null,"التأمين"]
[{"$nulls":5},"مدفعوعات السيارات",null,"الطبيب/طبيب الأسنان",null,"السيارة"]
[{"$nulls":5},"الوقود",null,"الأدوية/العقاقير",null,"الصحة"]
[{"$nulls":5},"أجرة الحافلة/سيارة الأجرة/القطار",null,"مستحقات النادي الصحي",null,"المنزل/الإيجار"]
[{"$nulls":5},"الإصلاحات",null,"الطوارئ",null,"الحياة"]
[{"$nulls":5},"التسجيل/الترخيص",null,"غير ذلك",null,"غير ذلك"]
[{"$nulls":5},"غير ذلك"]
[]
[]
[{"$nulls":5},"التعليم",null,"العمل الخيري",null,"المدخرات"]
[{"$nulls":5},"الأقساط",null,"الهدايا الممنوحة",null,"صندوق الطوارئ"]
[{"$nulls":5},"الكتب",null,"التبرعات الخيرية",null,"التحويل إلى الادخار"]
[{"$nulls":5},"دروس الموسيقى",null,"التبرعات الدينية",null,"التقاعد (خطط التقاعد)"]
[{"$nulls":5},"غير ذلك",null,"غير ذلك",null,"الاستثمارات"]
[{"$nulls":9},"الكلية"]
[{"$nulls":9},"غير ذلك"]
[]
[]
[{"$nulls":5},"الالتزامات",null,"الترفيه",null,"الحيوانات الأليفة"]
[{"$nulls":5},"قرض الطلاب",null,"ملفات الفيديو/أقراص الفيديو الرقمية",null,"الطعام"]
[{"$nulls":5},"قروض أخرى",null,"الموسيقى",null,"الطبابة"]
[{"$nulls":5},"بطاقة الائتمان رقم 1",null,"الألعاب",null,"الألعاب/التجهزيات"]
[{"$nulls":5},"بطاقة الائتمان رقم 2",null,"خدمات التأجير",null,"غير ذلك"]
[{"$nulls":5},"بطاقة الائتمان رقم 3",null,"السينما/المسرح"]
[{"$nulls":5},"نفقة الزوجة/إعالة الأطفال",null,"الحفلات الموسيقية/المسرحيات"]
[{"$nulls":5},"الضرائب الفدرالية",null,"الكتب"]
[{"$nulls":5},"ضرائب الملكية",null,"الهوايات"]
[{"$nulls":5},"الضرائب على صعيد الولاية/الصعيد المحلي",null,"الأفلام/الصور"]
[{"$nulls":5},"رسوم الصيانة",null,"الرياضات"]
[{"$nulls":5},"الرسوم القانونية",null,"الترفيه في الخارج"]
[{"$nulls":5},"غير ذلك",null,"الألعاب/الأدوات الذكية"]
[{"$nulls":7},"غير ذلك"]
[]
[{"$nulls":5},"الاشتراكات",null,"العطلة",null,"خيارات متنوعة"]
[{"$nulls":5},"الصحيفة",null,"السفر",null,"رسوم المصرف"]
[{"$nulls":5},"المجلات",null,"المأوى",null,"الطوابع"]
[{"$nulls":5},"المستحقات",null,"الطعام",null,"غير ذلك"]
[{"$nulls":5},"عضوية النوادي",null,"إيجار السيارة"]
[{"$nulls":5},"غير ذلك",null,"الترفيه"]
[{"$nulls":7},"غير ذلك"]

{"sheet":"بيانات المخطط","index":3,"n_rows":40,"n_cols":16,"rows_kept":40,"hidden":true}
[null,"*** يجب أن تبقى هذه الورقة مخفية ***"]
[]
[]
[null,"الفترة",3]
[]
[null,null,"يناير","فبراير","مارس","أبريل","مايو","يونيو","يوليو","أغسطس","سبتمبر","أكتوبر","نوفمبر","ديسمبر","سنة","المتوسط"]
[null,{"$f":"LOWER(الميزانية!B127)","v":" "},{"$f":"SUM(tblنفقةفئة15[يناير])","v":0},{"$f":"SUM(tblنفقةفئة15[فبراير])","v":0},{"$f":"SUM(tblنفقةفئة15[مارس])","v":0},{"$f":"SUM(tblنفقةفئة15[أبريل])","v":0},{"$f":"SUM(tblنفقةفئة15[مايو])","v":0},{"$f":"SUM(tblنفقةفئة15[يونيو])","v":0},{"$f":"SUM(tblنفقةفئة15[يوليو])","v":0},{"$f":"SUM(tblنفقةفئة15[أغسطس])","v":0},{"$f":"SUM(tblنفقةفئة15[سبتمبر])","v":0},{"$f":"SUM(tblنفقةفئة15[أكتوبر])","v":0},{"$f":"SUM(tblنفقةفئة15[نوفمبر])","v":0},{"$f":"SUM(tblنفقةفئة15[ديسمبر])","v":0},{"$f":"SUM(tblنفقةفئة15[سنة])","v":0},{"$f":"SUM(tblنفقةفئة15[المتوسط])","v":0}]
[null,{"$f":"LOWER(الميزانية!B120)","v":" "},{"$f":"SUM(tblنفقةفئة14[يناير])","v":0},{"$f":"SUM(tblنفقةفئة14[فبراير])","v":0},{"$f":"SUM(tblنفقةفئة14[مارس])","v":0},{"$f":"SUM(tblنفقةفئة14[أبريل])","v":0},{"$f":"SUM(tblنفقةفئة14[مايو])","v":0},{"$f":"SUM(tblنفقةفئة14[يونيو])","v":0},{"$f":"SUM(tblنفقةفئة14[يوليو])","v":0},{"$f":"SUM(tblنفقةفئة14[أغسطس])","v":0},{"$f":"SUM(tblنفقةفئة14[سبتمبر])","v":0},{"$f":"SUM(tblنفقةفئة14[أكتوبر])","v":0},{"$f":"SUM(tblنفقةفئة14[نوفمبر])","v":0},{"$f":"SUM(tblنفقةفئة14[ديسمبر])","v":0},{"$f":"SUM(tblنفقةفئة14[سنة])","v":0},{"$f":"SUM(tblنفقةفئة14[المتوسط])","v":0}]
[null,{"$f":"LOWER(الميزانية!B113)","v":" "},{"$f":"SUM(tblنفقةفئة13[يناير])","v":0},{"$f":"SUM(tblنفقةفئة13[فبراير])","v":0},{"$f":"SUM(tblنفقةفئة13[مارس])","v":0},{"$f":"SUM(tblنفقةفئة13[أبريل])","v":0},{"$f":"SUM(tblنفقةفئة13[مايو])","v":0},{"$f":"SUM(tblنفقةفئة13[يونيو])","v":0},{"$f":"SUM(tblنفقةفئة13[يوليو])","v":0},{"$f":"SUM(tblنفقةفئة13[أغسطس])","v":0},{"$f":"SUM(tblنفقةفئة13[سبتمبر])","v":0},{"$f":"SUM(tblنفقةفئة13[أكتوبر])","v":0},{"$f":"SUM(tblنفقةفئة13[نوفمبر])","v":0},{"$f":"SUM(tblنفقةفئة13[ديسمبر])","v":0},{"$f":"SUM(tblنفقةفئة13[سنة])","v":0},{"$f":"SUM(tblنفقةفئة13[المتوسط])","v":0}]
[null,{"$f":"LOWER(الميزانية!B106)","v":" "},{"$f":"SUM(tblنفقةفئة12[يناير])","v":0},{"$f":"SUM(tblنفقةفئة12[فبراير])","v":0},{"$f":"SUM(tblنفقةفئة12[مارس])","v":0},{"$f":"SUM(tblنفقةفئة12[أبريل])","v":0},{"$f":"SUM(tblنفقةفئة12[مايو])","v":0},{"$f":"SUM(tblنفقةفئة12[يونيو])","v":0},{"$f":"SUM(tblنفقةفئة12[يوليو])","v":0},{"$f":"SUM(tblنفقةفئة12[أغسطس])","v":0},{"$f":"SUM(tblنفقةفئة12[سبتمبر])","v":0},{"$f":"SUM(tblنفقةفئة12[أكتوبر])","v":0},{"$f":"SUM(tblنفقةفئة12[نوفمبر])","v":0},{"$f":"SUM(tblنفقةفئة12[ديسمبر])","v":0},{"$f":"SUM(tblنفقةفئة12[سنة])","v":0},{"$f":"SUM(tblنفقةفئة12[المتوسط])","v":0}]
[null,{"$f":"LOWER(الميزانية!B99)","v":" "},{"$f":"SUM(tblنفقةفئة11[يناير])","v":0},{"$f":"SUM(tblنفقةفئة11[فبراير])","v":0},{"$f":"SUM(tblنفقةفئة11[مارس])","v":0},{"$f":"SUM(tblنفقةفئة11[أبريل])","v":0},{"$f":"SUM(tblنفقةفئة11[مايو])","v":0},{"$f":"SUM(tblنفقةفئة11[يونيو])","v":0},{"$f":"SUM(tblنفقةفئة11[يوليو])","v":0},{"$f":"SUM(tblنفقةفئة11[أغسطس])","v":0},{"$f":"SUM(tblنفقةفئة11[سبتمبر])","v":0},{"$f":"SUM(tblنفقةفئة11[أكتوبر])","v":0},{"$f":"SUM(tblنفقةفئة11[نوفمبر])","v":0},{"$f":"SUM(tblنفقةفئة11[ديسمبر])","v":0},{"$f":"SUM(tblنفقةفئة11[سنة])","v":0},{"$f":"SUM(tblنفقةفئة11[المتوسط])","v":0}]
[null,{"$f":"LOWER(الميزانية!B92)","v":"الالتزامات"},{"$f":"SUM(tblنفقةفئة10[يناير])","v":650},{"$f":"SUM(tblنفقةفئة10[فبراير])","v":200},{"$f":"SUM(tblنفقةفئة10[مارس])","v":200},{"$f":"SUM(tblنفقةفئة10[أبريل])","v":650},{"$f":"SUM(tblنفقةفئة10[مايو])","v":200},{"$f":"SUM(tblنفقةفئة10[يونيو])","v":200},{"$f":"SUM(tblنفقةفئة10[يوليو])","v":650},{"$f":"SUM(tblنفقةفئة10[أغسطس])","v":200},{"$f":"SUM(tblنفقةفئة10[سبتمبر])","v":200},{"$f":"SUM(tblنفقةفئة10[أكتوبر])","v":650},{"$f":"SUM(tblنفقةفئة10[نوفمبر])","v":200},{"$f":"SUM(tblنفقةفئة10[ديسمبر])","v":200},{"$f":"SUM(tblنفقةفئة10[سنة])","v":{"v":4200,"d":"4,200"}},{"$f":"SUM(tblنفقةفئة10[المتوسط])","v":350}]
[null,{"$f":"LOWER(الميزانية!B85)","v":"المدخرات"},{"$f":"SUM(tblنفقةفئة9[يناير])","v":800},{"$f":"SUM(tblنفقةفئة9[فبراير])","v":800},{"$f":"SUM(tblنفقةفئة9[مارس])","v":800},{"$f":"SUM(tblنفقةفئة9[أبريل])","v":800},{"$f":"SUM(tblنفقةفئة9[مايو])","v":800},{"$f":"SUM(tblنفقةفئة9[يونيو])","v":500},{"$f":"SUM(tblنفقةفئة9[يوليو])","v":500},{"$f":"SUM(tblنفقةفئة9[أغسطس])","v":500},{"$f":"SUM(tblنفقةفئة9[سبتمبر])","v":800},{"$f":"SUM(tblنفقةفئة9[أكتوبر])","v":800},{"$f":"SUM(tblنفقةفئة9[نوفمبر])","v":800},{"$f":"SUM(tblنفقةفئة9[ديسمبر])","v":800},{"$f":"SUM(tblنفقةفئة9[سنة])","v":{"v":8700,"d":"8,700"}},{"$f":"SUM(tblنفقةفئة9[المتوسط])","v":725}]
[null,{"$f":"LOWER(الميزانية!B78)","v":"العمل الخيري"},{"$f":"SUM(tblنفقةفئة8[يناير])","v":0},{"$f":"SUM(tblنفقةفئة8[فبراير])","v":100},{"$f":"SUM(tblنفقةفئة8[مارس])","v":100},{"$f":"SUM(tblنفقةفئة8[أبريل])","v":100},{"$f":"SUM(tblنفقةفئة8[مايو])","v":100},{"$f":"SUM(tblنفقةفئة8[يونيو])","v":100},{"$f":"SUM(tblنفقةفئة8[يوليو])","v":100},{"$f":"SUM(tblنفقةفئة8[أغسطس])","v":100},{"$f":"SUM(tblنفقةفئة8[سبتمبر])","v":100},{"$f":"SUM(tblنفقةفئة8[أكتوبر])","v":100},{"$f":"SUM(tblنفقةفئة8[نوفمبر])","v":100},{"$f":"SUM(tblنفقةفئة8[ديسمبر])","v":100},{"$f":"SUM(tblنفقةفئة8[سنة])","v":{"v":1100,"d":"1,100"}},{"$f":"SUM(tblنفقةفئة8[المتوسط])","v":{"v":91.66666666666666,"d":"92"}}]
[null,{"$f":"LOWER(الميزانية!B71)","v":"التعليم"},{"$f":"SUM(tblنفقةفئة7[يناير])","v":0},{"$f":"SUM(tblنفقةفئة7[فبراير])","v":0},{"$f":"SUM(tblنفقةفئة7[مارس])","v":625},{"$f":"SUM(tblنفقةفئة7[أبريل])","v":0},{"$f":"SUM(tblنفقةفئة7[مايو])","v":0},{"$f":"SUM(tblنفقةفئة7[يونيو])","v":0},{"$f":"SUM(tblنفقةفئة7[يوليو])","v":0},{"$f":"SUM(tblنفقةفئة7[أغسطس])","v":0},{"$f":"SUM(tblنفقةفئة7[سبتمبر])","v":625},{"$f":"SUM(tblنفقةفئة7[أكتوبر])","v":0},{"$f":"SUM(tblنفقةفئة7[نوفمبر])","v":0},{"$f":"SUM(tblنفقةفئة7[ديسمبر])","v":0},{"$f":"SUM(tblنفقةفئة7[سنة])","v":{"v":1250,"d":"1,250"}},{"$f":"SUM(tblنفقةفئة7[المتوسط])","v":{"v":104.16666666666667,"d":"104"}}]
[null,{"$f":"LOWER(الميزانية!B64)","v":"التأمين"},{"$f":"SUM(tblنفقةفئة6[يناير])","v":975},{"$f":"SUM(tblنفقةفئة6[فبراير])","v":975},{"$f":"SUM(tblنفقةفئة6[مارس])","v":975},{"$f":"SUM(tblنفقةفئة6[أبريل])","v":975},{"$f":"SUM(tblنفقةفئة6[مايو])","v":975},{"$f":"SUM(tblنفقةفئة6[يونيو])","v":975},{"$f":"SUM(tblنفقةفئة6[يوليو])","v":975},{"$f":"SUM(tblنفقةفئة6[أغسطس])","v":975},{"$f":"SUM(tblنفقةفئة6[سبتمبر])","v":975},{"$f":"SUM(tblنفقةفئة6[أكتوبر])","v":975},{"$f":"SUM(tblنفقةفئة6[نوفمبر])","v":975},{"$f":"SUM(tblنفقةفئة6[ديسمبر])","v":975},{"$f":"SUM(tblنفقةفئة6[سنة])","v":{"v":11700,"d":"11,700"}},{"$f":"SUM(tblنفقةفئة6[المتوسط])","v":975}]
[null,{"$f":"LOWER(الميزانية!B57)","v":"الصحة"},{"$f":"SUM(tblنفقةفئة5[يناير])","v":25},{"$f":"SUM(tblنفقةفئة5[فبراير])","v":60},{"$f":"SUM(tblنفقةفئة5[مارس])","v":175},{"$f":"SUM(tblنفقةفئة5[أبريل])","v":25},{"$f":"SUM(tblنفقةفئة5[مايو])","v":60},{"$f":"SUM(tblنفقةفئة5[يونيو])","v":60},{"$f":"SUM(tblنفقةفئة5[يوليو])","v":60},{"$f":"SUM(tblنفقةفئة5[أغسطس])","v":25},{"$f":"SUM(tblنفقةفئة5[سبتمبر])","v":175},{"$f":"SUM(tblنفقةفئة5[أكتوبر])","v":60},{"$f":"SUM(tblنفقةفئة5[نوفمبر])","v":25},{"$f":"SUM(tblنفقةفئة5[ديسمبر])","v":25},{"$f":"SUM(tblنفقةفئة5[سنة])","v":775},{"$f":"SUM(tblنفقةفئة5[المتوسط])","v":{"v":64.58333333333334,"d":"65"}}]
[null,{"$f":"LOWER(الميزانية!B48)","v":"المواصلات"},{"$f":"SUM(tblنفقةفئة4[يناير])","v":{"v":1110,"d":"1,110"}},{"$f":"SUM(tblنفقةفئة4[فبراير])","v":{"v":1025,"d":"1,025"}},{"$f":"SUM(tblنفقةفئة4[مارس])","v":925},{"$f":"SUM(tblنفقةفئة4[أبريل])","v":{"v":1025,"d":"1,025"}},{"$f":"SUM(tblنفقةفئة4[مايو])","v":{"v":1325,"d":"1,325"}},{"$f":"SUM(tblنفقةفئة4[يونيو])","v":{"v":1200,"d":"1,200"}},{"$f":"SUM(tblنفقةفئة4[يوليو])","v":{"v":1100,"d":"1,100"}},{"$f":"SUM(tblنفقةفئة4[أغسطس])","v":{"v":1200,"d":"1,200"}},{"$f":"SUM(tblنفقةفئة4[سبتمبر])","v":{"v":1150,"d":"1,150"}},{"$f":"SUM(tblنفقةفئة4[أكتوبر])","v":{"v":1025,"d":"1,025"}},{"$f":"SUM(tblنفقةفئة4[نوفمبر])","v":925},{"$f":"SUM(tblنفقةفئة4[ديسمبر])","v":925},{"$f":"SUM(tblنفقةفئة4[سنة])","v":{"v":12935,"d":"12,935"}},{"$f":"SUM(tblنفقةفئة4[المتوسط])","v":{"v":1077.9166666666665,"d":"1,078"}}]
[null,{"$f":"LOWER(الميزانية!B39)","v":"الأولاد"},{"$f":"SUM(tblنفقةفئة3[يناير])","v":{"v":2373,"d":"2,373"}},{"$f":"SUM(tblنفقةفئة3[فبراير])","v":500},{"$f":"SUM(tblنفقةفئة3[مارس])","v":350},{"$f":"SUM(tblنفقةفئة3[أبريل])","v":250},{"$f":"SUM(tblنفقةفئة3[مايو])","v":350},{"$f":"SUM(tblنفقةفئة3[يونيو])","v":450},{"$f":"SUM(tblنفقةفئة3[يوليو])","v":200},{"$f":"SUM(tblنفقةفئة3[أغسطس])","v":545},{"$f":"SUM(tblنفقةفئة3[سبتمبر])","v":350},{"$f":"SUM(tblنفقةفئة3[أكتوبر])","v":350},{"$f":"SUM(tblنفقةفئة3[نوفمبر])","v":250},{"$f":"SUM(tblنفقةفئة3[ديسمبر])","v":350},{"$f":"SUM(tblنفقةفئة3[سنة])","v":{"v":6318,"d":"6,318"}},{"$f":"SUM(tblنفقةفئة3[المتوسط])","v":{"v":526.5,"d":"527"}}]
[null,{"$f":"LOWER(الميزانية!B30)","v":"الحياة اليومية"},{"$f":"SUM(tblنفقةفئة2[يناير])","v":795},{"$f":"SUM(tblنفقةفئة2[فبراير])","v":375},{"$f":"SUM(tblنفقةفئة2[مارس])","v":550},{"$f":"SUM(tblنفقةفئة2[أبريل])","v":825},{"$f":"SUM(tblنفقةفئة2[مايو])","v":500},{"$f":"SUM(tblنفقةفئة2[يونيو])","v":450},{"$f":"SUM(tblنفقةفئة2[يوليو])","v":875},{"$f":"SUM(tblنفقةفئة2[أغسطس])","v":475},{"$f":"SUM(tblنفقةفئة2[سبتمبر])","v":400},{"$f":"SUM(tblنفقةفئة2[أكتوبر])","v":825},{"$f":"SUM(tblنفقةفئة2[نوفمبر])","v":575},{"$f":"SUM(tblنفقةفئة2[ديسمبر])","v":375},{"$f":"SUM(tblنفقةفئة2[سنة])","v":{"v":7020,"d":"7,020"}},{"$f":"SUM(tblنفقةفئة2[المتوسط])","v":585}]
[null,{"$f":"LOWER(الميزانية!B21)","v":"المنزل"},{"$f":"SUM(tblنفقةفئة1[يناير])","v":{"v":1208,"d":"1,208"}},{"$f":"SUM(tblنفقةفئة1[فبراير])","v":{"v":1208,"d":"1,208"}},{"$f":"SUM(tblنفقةفئة1[مارس])","v":{"v":1233,"d":"1,233"}},{"$f":"SUM(tblنفقةفئة1[أبريل])","v":{"v":1208,"d":"1,208"}},{"$f":"SUM(tblنفقةفئة1[مايو])","v":{"v":1158,"d":"1,158"}},{"$f":"SUM(tblنفقةفئة1[يونيو])","v":{"v":1183,"d":"1,183"}},{"$f":"SUM(tblنفقةفئة1[يوليو])","v":{"v":1283,"d":"1,283"}},{"$f":"SUM(tblنفقةفئة1[أغسطس])","v":{"v":1333,"d":"1,333"}},{"$f":"SUM(tblنفقةفئة1[سبتمبر])","v":{"v":1208,"d":"1,208"}},{"$f":"SUM(tblنفقةفئة1[أكتوبر])","v":{"v":1158,"d":"1,158"}},{"$f":"SUM(tblنفقةفئة1[نوفمبر])","v":{"v":1208,"d":"1,208"}},{"$f":"SUM(tblنفقةفئة1[ديسمبر])","v":{"v":1208,"d":"1,208"}},{"$f":"SUM(tblنفقةفئة1[سنة])","v":{"v":14596,"d":"14,596"}},{"$f":"SUM(tblنفقةفئة1[المتوسط])","v":{"v":1216.3333333333335,"d":"1,216"}}]
[]
[]
[]
[]
[null,"التدفق النقدي التراكمي",{"$f":"SUM(الميزانية!$C$8:C$8)","v":{"v":-3714,"d":"-3,714"}},{"$f":"SUM(الميزانية!$C$8:D$8)","v":76},{"$f":"SUM(الميزانية!$C$8:E$8)","v":{"v":-1857,"d":"-1,857"}},{"$f":"SUM(الميزانية!$C$8:F$8)","v":{"v":-3670,"d":"-3,670"}},{"$f":"SUM(الميزانية!$C$8:G$8)","v":-138},{"$f":"SUM(الميزانية!$C$8:H$8)","v":{"v":-3731,"d":"-3,731"}},{"$f":"SUM(الميزانية!$C$8:I$8)","v":{"v":-7974,"d":"-7,974"}},{"$f":"SUM(الميزانية!$C$8:J$8)","v":{"v":-6827,"d":"-6,827"}},{"$f":"SUM(الميزانية!$C$8:K$8)","v":{"v":-8810,"d":"-8,810"}},{"$f":"SUM(الميزانية!$C$8:L$8)","v":{"v":-10753,"d":"-10,753"}},{"$f":"SUM(الميزانية!$C$8:M$8)","v":{"v":-6811,"d":"-6,811"}},{"$f":"SUM(الميزانية!$C$8:N$8)","v":{"v":-7769,"d":"-7,769"}},{"$f":"SUM(الميزانية!$C$8:O$8)","v":{"v":-15538,"d":"-15,538"}}]
[]
[null,"التدفق النقدي السنوي الإيجابي",{"$f":"IF(الميزانية!C$8<0,NA(),IF(فترة+2<>COLUMN(الميزانية!C$8),NA(),الميزانية!C$8))","v":{"$error":"#N/A"}},{"$f":"IF(الميزانية!D$8<0,NA(),IF(فترة+2<>COLUMN(الميزانية!D$8),NA(),الميزانية!D$8))","v":{"$error":"#N/A"}},{"$f":"IF(الميزانية!E$8<0,NA(),IF(فترة+2<>COLUMN(الميزانية!E$8),NA(),الميزانية!E$8))","v":{"$error":"#N/A"}},{"$f":"IF(الميزانية!F$8<0,NA(),IF(فترة+2<>COLUMN(الميزانية!F$8),NA(),الميزانية!F$8))","v":{"$error":"#N/A"}},{"$f":"IF(الميزانية!G$8<0,NA(),IF(فترة+2<>COLUMN(الميزانية!G$8),NA(),الميزانية!G$8))","v":{"$error":"#N/A"}},{"$f":"IF(الميزانية!H$8<0,NA(),IF(فترة+2<>COLUMN(الميزانية!H$8),NA(),الميزانية!H$8))","v":{"$error":"#N/A"}},{"$f":"IF(الميزانية!I$8<0,NA(),IF(فترة+2<>COLUMN(الميزانية!I$8),NA(),الميزانية!I$8))","v":{"$error":"#N/A"}},{"$f":"IF(الميزانية!J$8<0,NA(),IF(فترة+2<>COLUMN(الميزانية!J$8),NA(),الميزانية!J$8))","v":{"$error":"#N/A"}},{"$f":"IF(الميزانية!K$8<0,NA(),IF(فترة+2<>COLUMN(الميزانية!K$8),NA(),الميزانية!K$8))","v":{"$error":"#N/A"}},{"$f":"IF(الميزانية!L$8<0,NA(),IF(فترة+2<>COLUMN(الميزانية!L$8),NA(),الميزانية!L$8))","v":{"$error":"#N/A"}},{"$f":"IF(الميزانية!M$8<0,NA(),IF(فترة+2<>COLUMN(الميزانية!M$8),NA(),الميزانية!M$8))","v":{"$error":"#N/A"}},{"$f":"IF(الميزانية!N$8<0,NA(),IF(فترة+2<>COLUMN(الميزانية!N$8),NA(),الميزانية!N$8))","v":{"$error":"#N/A"}},{"$f":"IF(الميزانية!O$8<0,NA(),IF(فترة+2<>COLUMN(الميزانية!O$8),NA(),الميزانية!O$8))","v":{"$error":"#N/A"}}]
[null,"التدفق النقدي السنوي السلبي",{"$f":"IF(الميزانية!C$8>=0,NA(),IF(فترة+2<>COLUMN(الميزانية!C$8),NA(),الميزانية!C$8))","v":{"$error":"#N/A"}},{"$f":"IF(الميزانية!D$8>=0,NA(),IF(فترة+2<>COLUMN(الميزانية!D$8),NA(),الميزانية!D$8))","v":{"$error":"#N/A"}},{"$f":"IF(الميزانية!E$8>=0,NA(),IF(فترة+2<>COLUMN(الميزانية!E$8),NA(),الميزانية!E$8))","v":{"v":-1933,"d":"-1,933"}},{"$f":"IF(الميزانية!F$8>=0,NA(),IF(فترة+2<>COLUMN(الميزانية!F$8),NA(),الميزانية!F$8))","v":{"$error":"#N/A"}},{"$f":"IF(الميزانية!G$8>=0,NA(),IF(فترة+2<>COLUMN(الميزانية!G$8),NA(),الميزانية!G$8))","v":{"$error":"#N/A"}},{"$f":"IF(الميزانية!H$8>=0,NA(),IF(فترة+2<>COLUMN(الميزانية!H$8),NA(),الميزانية!H$8))","v":{"$error":"#N/A"}},{"$f":"IF(الميزانية!I$8>=0,NA(),IF(فترة+2<>COLUMN(الميزانية!I$8),NA(),الميزانية!I$8))","v":{"$error":"#N/A"}},{"$f":"IF(الميزانية!J$8>=0,NA(),IF(فترة+2<>COLUMN(الميزانية!J$8),NA(),الميزانية!J$8))","v":{"$error":"#N/A"}},{"$f":"IF(الميزانية!K$8>=0,NA(),IF(فترة+2<>COLUMN(الميزانية!K$8),NA(),الميزانية!K$8))","v":{"$error":"#N/A"}},{"$f":"IF(الميزانية!L$8>=0,NA(),IF(فترة+2<>COLUMN(الميزانية!L$8),NA(),الميزانية!L$8))","v":{"$error":"#N/A"}},{"$f":"IF(الميزانية!M$8>=0,NA(),IF(فترة+2<>COLUMN(الميزانية!M$8),NA(),الميزانية!M$8))","v":{"$error":"#N/A"}},{"$f":"IF(الميزانية!N$8>=0,NA(),IF(فترة+2<>COLUMN(الميزانية!N$8),NA(),الميزانية!N$8))","v":{"$error":"#N/A"}},{"$f":"IF(الميزانية!O$8>=0,NA(),IF(فترة+2<>COLUMN(الميزانية!O$8),NA(),الميزانية!O$8))","v":{"$error":"#N/A"}}]
{"$rows_empty":7}
[null,{"$f":"LOWER(عرضفترةطويلة)","v":"مارس"}]
[null,{"$f":"عرضفترةطويلة & \" الدخل\"","v":"مارس الدخل"},{"$f":"INDEX(الميزانية!$C$6:$P$6,,فترة)","v":{"v":4000,"d":" 4,000ر.س.‏"}}]
[null,{"$f":"عرضفترةطويلة & \" المصاريف: \" & TEXT(INDEX(الميزانية!$C$7:$P$7,,فترة),\"$#,##0\")","v":"مارس المصاريف: $5,933"},{"$f":"INDEX(الميزانية!$C$7:$P$7,,فترة)","v":{"v":5933,"d":" 5,933ر.س.‏"}}]
[null,{"$f":"عرضفترةطويلة & \" التدفق النقدي\"","v":"مارس التدفق النقدي"},{"$f":"ABS(INDEX(الميزانية!$C$8:$P$8,,فترة))","v":{"v":1933,"d":" 1,933ر.س.‏"}},{"$f":"REPT(\"-\",INDEX(الميزانية!$C$8:$P$8,,فترة)<0)","v":"-"}]